fUSD/lending_fUSD_20260624
["ID","MTS","AMOUNT","RATE_DAILY","PERIOD"]
[426301857,1782259853000,-2084.6527332,0.00015,2]
[426301864,1782259853000,-500.0,0.00015,2]
[426301860,1782259853000,-429.57054548,0.00015,2]
[426301867,1782259853000,-151.0,0.00015,2]
[426301862,1782259853000,-157.176829,0.00015,2]
[426301868,1782259853000,-300.0,0.00015,2]
[426301866,1782259853000,-300.0,0.00015,3]
[426301873,1782259853000,-400.0,0.00015,2]
[426301872,1782259853000,-500.0,0.00015,2]
[426301874,1782259853000,-300.0,0.00015,3]
[426301869,1782259853000,-200.0,0.00015,2]
[426301875,1782259853000,-277.37627606,0.00015,2]
[426301878,1782259853000,-500.0,0.00015,2]
[426301877,1782259853000,-500.0,0.00015,2]
[426301876,1782259853000,-398.00815001,0.00015,2]
[426301870,1782259853000,-1916.07,0.00015,2]
[426301865,1782259853000,-400.0,0.00015,2]
[426301871,1782259853000,-300.0,0.00015,2]
[426301915,1782259854000,-2691.63392853,0.00016438,2]
[426301927,1782259854000,-2691.63392853,0.00016438,2]
[426301928,1782259854000,-2691.63392853,0.00016438,2]
[426301926,1782259854000,-2691.63392853,0.00016438,2]
[426301918,1782259854000,-2691.63392853,0.00016438,2]
[426301911,1782259854000,-2691.63392853,0.00016438,2]
[426301914,1782259854000,-2691.63392853,0.00016438,2]
[426301909,1782259854000,-2691.63392853,0.00016438,2]
[426301913,1782259854000,-2691.63392853,0.00016438,2]
[426301912,1782259854000,-2691.63392853,0.00016438,2]
[426301917,1782259854000,-2691.63392853,0.00016438,2]
[426301910,1782259854000,-2691.63392853,0.00016438,2]
[426301919,1782259854000,-2691.63392853,0.00016438,2]
[426301924,1782259854000,-2691.63392853,0.00016438,2]
[426301922,1782259854000,-2691.63392853,0.00016438,2]
[426301923,1782259854000,-2691.63392853,0.00016438,2]
[426301937,1782259854000,-2691.63392853,0.00016438,2]
[426301921,1782259854000,-2691.63392853,0.00016438,2]
[426301925,1782259854000,-2691.63392853,0.00016438,2]
[426301929,1782259854000,-2691.63392853,0.00016438,2]
[426301933,1782259854000,-2691.63392853,0.00016438,2]
[426301931,1782259854000,-2691.63392853,0.00016438,2]
[426301930,1782259854000,-2691.63392853,0.00016438,2]
[426301932,1782259854000,-2691.63392853,0.00016438,2]
[426301938,1782259854000,-2691.63392853,0.00016438,2]
[426301916,1782259854000,-2691.63392853,0.00016438,2]
[426301920,1782259854000,-2691.63392853,0.00016438,2]
[426301905,1782259854000,-500.0,0.00016437,2]
[426301889,1782259854000,-1517.64,0.000153,2]
[426301907,1782259854000,-1138.6,0.00016438,2]
[426301939,1782259854000,-2691.63392853,0.00016438,2]
[426301879,1782259854000,-194.02445004,0.00015,2]
[426301880,1782259854000,-398.00815001,0.00015,3]
[426301884,1782259854000,-900.0,0.00015068,2]
[426301882,1782259854000,-1100.0,0.00015065,2]
[426301885,1782259854000,-500.0,0.00015186,2]
[426301891,1782259854000,-1784.63,0.00015918,2]
[426301881,1782259854000,-2500.0,0.00015065,2]
[426301890,1782259854000,-2279.53873597,0.00015807,2]
[426301888,1782259854000,-804.84,0.00015289,2]
[426301886,1782259854000,-2000.0,0.00015186,2]
[426301883,1782259854000,-1350.0,0.00015065,7]
[426301906,1782259854000,-936.0,0.00016437,2]
[426301887,1782259854000,-1252.0,0.00015207,2]
[426301901,1782259854000,-200.0,0.0001634,2]
[426301892,1782259854000,-1500.0,0.00015966,2]
[426301902,1782259854000,-500.0,0.00016437,2]
[426301894,1782259854000,-300.0,0.00016,2]
[426301903,1782259854000,-893.34,0.00016437,2]
[426301896,1782259854000,-216.39158367,0.00016,3]
[426301899,1782259854000,-804.84,0.00016271,2]
[426301897,1782259854000,-849.39,0.000161,2]
[426301895,1782259854000,-368.12052218,0.00016,2]
[426301900,1782259854000,-711.6689,0.00016338,2]
[426301898,1782259854000,-9999.99,0.00016116,2]
[426301904,1782259854000,-500.0,0.00016437,2]
[426301893,1782259854000,-161.80998669,0.00016,2]
[426301936,1782259854000,-2691.63392853,0.00016438,2]
[426301908,1782259854000,-2691.63392853,0.00016438,2]
[426301935,1782259854000,-2691.63392853,0.00016438,2]
[426301972,1782259854000,-2691.63392853,0.00016438,2]
[426301971,1782259854000,-2691.63392853,0.00016438,2]
[426301969,1782259854000,-2691.63392853,0.00016438,2]
[426301975,1782259854000,-2691.63392853,0.00016438,2]
[426301973,1782259854000,-2691.63392853,0.00016438,2]
[426301974,1782259854000,-2691.63392853,0.00016438,2]
[426301976,1782259854000,-2691.63392853,0.00016438,2]
[426301978,1782259854000,-2691.63392853,0.00016438,2]
[426301988,1782259854000,-2691.63392853,0.00016438,2]
[426301979,1782259854000,-2691.63392853,0.00016438,2]
[426301977,1782259854000,-2691.63392853,0.00016438,2]
[426301987,1782259854000,-2691.63392853,0.00016438,2]
[426301986,1782259854000,-2691.63392853,0.00016438,2]
[426301980,1782259854000,-2691.63392853,0.00016438,2]
[426301982,1782259854000,-2691.63392853,0.00016438,2]
[426301981,1782259854000,-2691.63392853,0.00016438,2]
[426301983,1782259854000,-2691.63392853,0.00016438,2]
[426301985,1782259854000,-2691.63392853,0.00016438,2]
[426301984,1782259854000,-2691.63392853,0.00016438,2]
[426301989,1782259854000,-900.0,0.00016438,2]
[426301990,1782259854000,-151.983336,0.00016438,2]
[426301991,1782259854000,-151.0,0.00016438,2]
[426301996,1782259854000,-1993.101868,0.00016438,2]
[426301992,1782259854000,-151.0,0.00016438,2]
[426301993,1782259854000,-151.0,0.00016438,2]
[426301994,1782259854000,-231.05,0.00016438,2]
[426301934,1782259854000,-2691.63392853,0.00016438,2]
[426301970,1782259854000,-2691.63392853,0.00016438,2]
[426301968,1782259854000,-2691.63392853,0.00016438,2]
[426301995,1782259854000,-1993.101868,0.00016438,2]
[426301967,1782259854000,-2691.63392853,0.00016438,2]
[426301966,1782259854000,-2691.63392853,0.00016438,2]
[426301941,1782259854000,-2691.63392853,0.00016438,2]
[426301951,1782259854000,-2691.63392853,0.00016438,2]
[426301943,1782259854000,-2691.63392853,0.00016438,2]
[426301942,1782259854000,-2691.63392853,0.00016438,2]
[426301944,1782259854000,-2691.63392853,0.00016438,2]
[426301952,1782259854000,-2691.63392853,0.00016438,2]
[426301946,1782259854000,-2691.63392853,0.00016438,2]
[426301945,1782259854000,-2691.63392853,0.00016438,2]
[426301950,1782259854000,-2691.63392853,0.00016438,2]
[426301948,1782259854000,-2691.63392853,0.00016438,2]
[426301949,1782259854000,-2691.63392853,0.00016438,2]
[426301947,1782259854000,-2691.63392853,0.00016438,2]
[426301940,1782259854000,-2691.63392853,0.00016438,2]
[426301955,1782259854000,-2691.63392853,0.00016438,2]
[426301997,1782259854000,-1993.101868,0.00016438,2]
[426301961,1782259854000,-2691.63392853,0.00016438,2]
[426301962,1782259854000,-2691.63392853,0.00016438,2]
[426301965,1782259854000,-2691.63392853,0.00016438,2]
[426301953,1782259854000,-2691.63392853,0.00016438,2]
[426301960,1782259854000,-2691.63392853,0.00016438,2]
[426301963,1782259854000,-2691.63392853,0.00016438,2]
[426301964,1782259854000,-2691.63392853,0.00016438,2]
[426301959,1782259854000,-2691.63392853,0.00016438,2]
[426301957,1782259854000,-2691.63392853,0.00016438,2]
[426301954,1782259854000,-2691.63392853,0.00016438,2]
[426301956,1782259854000,-2691.63392853,0.00016438,2]
[426301958,1782259854000,-2691.63392853,0.00016438,2]
[426302034,1782259855000,-500.0,0.00018355,2]
[426302036,1782259855000,-500.0,0.00018355,2]
[426302045,1782259855000,-163.66062104,0.00018666,2]
[426302035,1782259855000,-893.34,0.00018355,2]
[426302028,1782259855000,-15880.22,0.00018,2]
[426302032,1782259855000,-1127.0,0.00018251,2]
[426302033,1782259855000,-173.97177669,0.00018251,3]
[426302029,1782259855000,-350.0,0.00018,2]
[426302030,1782259855000,-1734.62772924,0.00018158,2]
[426302031,1782259855000,-804.84,0.00018236,2]
[426302041,1782259855000,-154.37421803,0.000184,2]
[426302042,1782259855000,-154.37421803,0.000184,2]
[426302037,1782259855000,-500.0,0.00018355,2]
[426302043,1782259855000,-1138.6,0.0001841,2]
[426302038,1782259855000,-936.0,0.00018355,2]
[426302039,1782259855000,-90007.59,0.00018356,2]
[426302040,1782259855000,-154.37421804,0.000184,2]
[426302057,1782259855000,-1865.36488656,0.00019254,2]
[426302050,1782259855000,-160.0,0.00019,2]
[426302058,1782259855000,-313.74152797,0.00019256,2]
[426302047,1782259855000,-500.0,0.00018742,2]
[426302048,1782259855000,-173.9717767,0.00018795,3]
[426302049,1782259855000,-5175.63956764,0.00019,2]
[426302026,1782259855000,-2000.0,0.00017987,2]
[426302044,1782259855000,-1916.07,0.000185,2]
[426302027,1782259855000,-48326.44240729,0.00018,2]
[426302012,1782259855000,-500.0,0.00017358,2]
[426302023,1782259855000,-795.76460638,0.000177,2]
[426302046,1782259855000,-1798.80895522,0.00018706,2]
[426302000,1782259855000,-1000.0,0.000165,2]
[426301998,1782259855000,-1993.101868,0.00016438,2]
[426301999,1782259855000,-1127.0,0.00016471,2]
[426302001,1782259855000,-1555.5,0.00016514,2]
[426302004,1782259855000,-1916.07,0.00017,2]
[426302003,1782259855000,-171.22,0.00016712,2]
[426302002,1782259855000,-774.0,0.00016688,2]
[426302007,1782259855000,-1613.0535,0.00017062,2]
[426302006,1782259855000,-173.87829066,0.00017025,2]
[426302008,1782259855000,-599.43,0.00017084,2]
[426302005,1782259855000,-185.56278666,0.00017025,2]
[426302025,1782259855000,-500.0,0.00017987,2]
[426302010,1782259855000,-804.84,0.00017253,2]
[426302011,1782259855000,-1127.0,0.00017338,2]
[426302022,1782259855000,-600.0,0.00017632,2]
[426302013,1782259855000,-500.0,0.00017358,2]
[426302017,1782259855000,-1672.7364795,0.0001761,2]
[426302014,1782259855000,-500.0,0.00017358,2]
[426302019,1782259855000,-500.0,0.00017632,2]
[426302016,1782259855000,-600.0,0.00017358,2]
[426302018,1782259855000,-500.0,0.00017632,2]
[426302015,1782259855000,-500.0,0.00017358,2]
[426302020,1782259855000,-500.0,0.00017632,2]
[426302021,1782259855000,-500.0,0.00017632,2]
[426302024,1782259855000,-1243.65868844,0.0001789,2]
[426302009,1782259855000,-201.0,0.00017134,3]
[426302052,1782259855000,-1127.0,0.00019163,2]
[426302053,1782259855000,-151.0,0.00019178,2]
[426302054,1782259855000,-151.0,0.00019178,2]
[426302086,1782259855000,-174.52983839,0.000197,2]
[426302087,1782259855000,-205.98672192,0.000197,2]
[426302088,1782259855000,-8764.85168775,0.000197,2]
[426302089,1782259855000,-169.87728653,0.000197,2]
[426302085,1782259855000,-166.50562087,0.000197,2]
[426302092,1782259855000,-350.94877708,0.000197,2]
[426302095,1782259855000,-9649.26720228,0.000197,2]
[426302097,1782259855000,-35694.0,0.000197,2]
[426302099,1782259855000,-280.51110536,0.00019789,2]
[426302101,1782259855000,-151.0,0.00019802,2]
[426302096,1782259855000,-1610.8831814,0.000197,2]
[426302093,1782259855000,-169.85301842,0.000197,2]
[426302100,1782259855000,-151.0,0.00019802,2]
[426302098,1782259855000,-168.69,0.00019726,2]
[426302094,1782259855000,-170.3844487,0.000197,2]
[426302103,1782259855000,-151.0,0.00019802,2]
[426302102,1782259855000,-200.0,0.00019802,2]
[426302105,1782259855000,-151.0,0.00019802,2]
[426302104,1782259855000,-151.0,0.00019802,2]
[426302106,1782259855000,-151.0,0.00019802,2]
[426302108,1782259855000,-151.0,0.00019802,2]
[426302111,1782259855000,-151.0,0.00019802,2]
[426302107,1782259855000,-151.0,0.00019802,2]
[426302051,1782259855000,-365.95417538,0.0001901,7]
[426302110,1782259855000,-500.0,0.00019802,2]
[426302081,1782259855000,-170.3844487,0.000195,2]
[426302084,1782259855000,-10309.08021146,0.000197,2]
[426302109,1782259855000,-151.0,0.00019802,2]
[426302082,1782259855000,-9649.26720228,0.000195,2]
[426302083,1782259855000,-1610.8831814,0.000195,2]
[426302056,1782259855000,-804.84,0.00019218,2]
[426302059,1782259855000,-500.0,0.00019305,2]
[426302062,1782259855000,-500.0,0.00019355,7]
[426302066,1782259855000,-500.0,0.00019355,7]
[426302060,1782259855000,-151.0,0.00019352,2]
[426302063,1782259855000,-500.0,0.00019355,7]
[426302065,1782259855000,-500.0,0.00019355,7]
[426302064,1782259855000,-500.0,0.00019355,7]
[426302061,1782259855000,-500.0,0.00019355,7]
[426302067,1782259855000,-500.0,0.00019355,7]
[426302072,1782259855000,-166.50562087,0.000195,2]
[426302069,1782259855000,-1000.0,0.00019388,2]
[426302055,1782259855000,-151.0,0.00019178,2]
[426302071,1782259855000,-10309.08021146,0.000195,2]
[426302091,1782259855000,-169.89889698,0.000197,2]
[426302080,1782259855000,-169.85301842,0.000195,2]
[426302090,1782259855000,-215.71060911,0.000197,2]
[426302070,1782259855000,-266475.67078589,0.000194,2]
[426302075,1782259855000,-8764.85168775,0.000195,2]
[426302079,1782259855000,-350.94877708,0.000195,2]
[426302074,1782259855000,-205.98672192,0.000195,2]
[426302068,1782259855000,-556.31,0.00019355,7]
[426302076,1782259855000,-169.87728653,0.000195,2]
[426302078,1782259855000,-169.89889698,0.000195,2]
[426302073,1782259855000,-174.52983839,0.000195,2]
[426302077,1782259855000,-215.71060911,0.000195,2]
[426302147,1782259856000,-500.0,0.00019802,2]
[426302145,1782259856000,-151.0,0.00019802,2]
[426302150,1782259856000,-10309.08021146,0.000199,2]
[426302153,1782259856000,-8764.85168775,0.000199,2]
[426302146,1782259856000,-151.0,0.00019802,2]
[426302141,1782259856000,-500.0,0.00019802,2]
[426302144,1782259856000,-500.0,0.00019802,2]
[426302143,1782259856000,-151.0,0.00019802,2]
[426302149,1782259856000,-500.0,0.00019884,2]
[426302148,1782259856000,-151.0,0.00019802,2]
[426302152,1782259856000,-174.52983839,0.000199,2]
[426302156,1782259856000,-350.94877708,0.000199,2]
[426302151,1782259856000,-166.50562087,0.000199,2]
[426302162,1782259856000,-2000.0,0.00019966,7]
[426302166,1782259856000,-893.34,0.00019999,2]
[426302164,1782259856000,-500.0,0.00019973,2]
[426302155,1782259856000,-169.89889698,0.000199,2]
[426302160,1782259856000,-2218.0,0.00019922,5]
[426302165,1782259856000,-500.0,0.00019999,2]
[426302157,1782259856000,-169.85301842,0.000199,2]
[426302154,1782259856000,-169.87728653,0.000199,2]
[426302159,1782259856000,-1610.8831814,0.000199,2]
[426302138,1782259856000,-500.0,0.00019802,2]
[426302142,1782259856000,-151.0,0.00019802,2]
[426302139,1782259856000,-151.0,0.00019802,2]
[426302128,1782259856000,-151.0,0.00019802,2]
[426302135,1782259856000,-500.0,0.00019802,2]
[426302113,1782259856000,-151.0,0.00019802,2]
[426302116,1782259856000,-151.0,0.00019802,2]
[426302114,1782259856000,-500.0,0.00019802,2]
[426302115,1782259856000,-151.0,0.00019802,2]
[426302112,1782259856000,-1934.38338736,0.00019802,2]
[426302120,1782259856000,-500.0,0.00019802,2]
[426302119,1782259856000,-151.0,0.00019802,2]
[426302124,1782259856000,-151.0,0.00019802,2]
[426302117,1782259856000,-500.0,0.00019802,2]
[426302118,1782259856000,-151.0,0.00019802,2]
[426302123,1782259856000,-500.0,0.00019802,2]
[426302134,1782259856000,-151.0,0.00019802,2]
[426302126,1782259856000,-500.0,0.00019802,2]
[426302127,1782259856000,-151.0,0.00019802,2]
[426302122,1782259856000,-151.0,0.00019802,2]
[426302125,1782259856000,-151.0,0.00019802,2]
[426302130,1782259856000,-151.0,0.00019802,2]
[426302140,1782259856000,-151.0,0.00019802,2]
[426302132,1782259856000,-500.0,0.00019802,2]
[426302129,1782259856000,-500.0,0.00019802,2]
[426302131,1782259856000,-151.0,0.00019802,2]
[426302137,1782259856000,-151.0,0.00019802,2]
[426302133,1782259856000,-151.0,0.00019802,2]
[426302136,1782259856000,-151.0,0.00019802,2]
[426302121,1782259856000,-151.0,0.00019802,2]
[426302158,1782259856000,-9649.26720228,0.000199,2]
[426302161,1782259856000,-15975.43461164,0.0001995,15]
[426302167,1782259856000,-500.0,0.00019999,2]
[426302196,1782259856000,-312.0,0.0002,2]
[426302197,1782259856000,-1378.0,0.0002,2]
[426302202,1782259856000,-190.0,0.0002,2]
[426302201,1782259856000,-842.0,0.0002,2]
[426302195,1782259856000,-366.0,0.0002,2]
[426302203,1782259856000,-400.0,0.0002,2]
[426302200,1782259856000,-993.0,0.0002,2]
[426302198,1782259856000,-414.0,0.0002,2]
[426302199,1782259856000,-439.0,0.0002,2]
[426302206,1782259856000,-216.39158367,0.0002,7]
[426302217,1782259856000,-893.34,0.00020199,2]
[426302194,1782259856000,-289.69334634,0.0002,2]
[426302205,1782259856000,-12208.21,0.0002,2]
[426302208,1782259856000,-403.22,0.000201,14]
[426302213,1782259856000,-1610.8831814,0.000201,2]
[426302211,1782259856000,-350.94877708,0.000201,2]
[426302212,1782259856000,-9649.26720228,0.000201,2]
[426302207,1782259856000,-10309.08021146,0.000201,2]
[426302209,1782259856000,-8764.85168775,0.000201,2]
[426302210,1782259856000,-169.89889698,0.000201,2]
[426302214,1782259856000,-1916.07,0.000201,2]
[426302215,1782259856000,-5529.0,0.000201,3]
[426302218,1782259856000,-936.0,0.00020199,2]
[426302219,1782259856000,-220.96774071,0.000202,2]
[426302216,1782259856000,-596.81222315,0.00020121,2]
[426302204,1782259856000,-631.0,0.0002,2]
[426302163,1782259856000,-429.31834427,0.0001997,2]
[426302188,1782259856000,-500.0,0.0002,2]
[426302193,1782259856000,-500.0,0.0002,2]
[426302170,1782259856000,-220.96774071,0.0002,2]
[426302169,1782259856000,-936.0,0.00019999,2]
[426302173,1782259856000,-288.67407521,0.0002,2]
[426302168,1782259856000,-500.0,0.00019999,2]
[426302179,1782259856000,-602.0,0.0002,2]
[426302177,1782259856000,-437.0,0.0002,2]
[426302171,1782259856000,-654.73534679,0.0002,2]
[426302176,1782259856000,-426.63485121,0.0002,2]
[426302178,1782259856000,-3004.19797616,0.0002,7]
[426302175,1782259856000,-201.23757348,0.0002,2]
[426302174,1782259856000,-24466.07,0.0002,2]
[426302172,1782259856000,-40597.0,0.0002,2]
[426302181,1782259856000,-4745.62988,0.0002,3]
[426302192,1782259856000,-500.0,0.0002,2]
[426302187,1782259856000,-500.0,0.0002,2]
[426302190,1782259856000,-500.0,0.0002,2]
[426302186,1782259856000,-500.0,0.0002,2]
[426302185,1782259856000,-500.0,0.0002,2]
[426302189,1782259856000,-500.0,0.0002,2]
[426302184,1782259856000,-2752.0,0.0002,2]
[426302180,1782259856000,-299.999999,0.0002,2]
[426302182,1782259856000,-151.0,0.0002,2]
[426302191,1782259856000,-500.0,0.0002,2]
[426302183,1782259856000,-1461.0,0.0002,2]
[426302245,1782259857000,-9649.26720228,0.000205,2]
[426302246,1782259857000,-1610.8831814,0.000205,2]
[426302244,1782259857000,-8764.85168775,0.000205,2]
[426302257,1782259857000,-631.0,0.00020606,2]
[426302250,1782259857000,-150.0,0.0002058,2]
[426302252,1782259857000,-187.42159584,0.0002058,2]
[426302251,1782259857000,-150.0,0.0002058,2]
[426302255,1782259857000,-426.63485121,0.000206,2]
[426302264,1782259857000,-151.0,0.000207,2]
[426302254,1782259857000,-654.73534679,0.000206,2]
[426302248,1782259857000,-150.0,0.0002058,2]
[426302249,1782259857000,-150.0,0.0002058,2]
[426302247,1782259857000,-11111.72,0.00020548,2]
[426302258,1782259857000,-785.0,0.00020606,2]
[426302268,1782259857000,-645.664511,0.000207,2]
[426302261,1782259857000,-8764.85168775,0.000207,2]
[426302266,1782259857000,-151.0,0.000207,2]
[426302243,1782259857000,-10309.08021146,0.000205,2]
[426302253,1782259857000,-220.96774071,0.000206,2]
[426302242,1782259857000,-500.0,0.0002048,2]
[426302232,1782259857000,-151.0,0.0002035,2]
[426302239,1782259857000,-654.73534679,0.000204,2]
[426302220,1782259857000,-654.73534679,0.000202,2]
[426302223,1782259857000,-804.84,0.000202,2]
[426302221,1782259857000,-201.23757348,0.000202,2]
[426302222,1782259857000,-426.63485121,0.000202,2]
[426302224,1782259857000,-789.47036525,0.00020274,2]
[426302228,1782259857000,-350.94877708,0.000203,2]
[426302227,1782259857000,-169.89889698,0.000203,2]
[426302230,1782259857000,-1610.8831814,0.000203,2]
[426302233,1782259857000,-2005.9555727,0.0002035,2]
[426302240,1782259857000,-426.63485121,0.000204,2]
[426302260,1782259857000,-10309.08021146,0.000207,2]
[426302234,1782259857000,-1138.6,0.00020381,2]
[426302229,1782259857000,-9649.26720228,0.000203,2]
[426302226,1782259857000,-8764.85168775,0.000203,2]
[426302231,1782259857000,-200.0,0.0002035,2]
[426302236,1782259857000,-500.0,0.00020399,2]
[426302235,1782259857000,-500.0,0.00020399,2]
[426302237,1782259857000,-500.0,0.00020399,2]
[426302238,1782259857000,-220.96774071,0.000204,2]
[426302241,1782259857000,-707.83,0.000204,7]
[426302225,1782259857000,-10309.08021146,0.000203,2]
[426302259,1782259857000,-171.22,0.00020639,2]
[426302256,1782259857000,-5529.0,0.000206,5]
[426302265,1782259857000,-645.664511,0.000207,2]
[426302288,1782259857000,-1993.101868,0.000209,2]
[426302290,1782259857000,-1993.101868,0.000209,2]
[426302291,1782259857000,-151.0,0.000209,2]
[426302292,1782259857000,-785.0,0.00020939,2]
[426302299,1782259857000,-936.0,0.00020999,2]
[426302296,1782259857000,-3000.0,0.00020999,12]
[426302297,1782259857000,-1000.0,0.00020999,17]
[426302298,1782259857000,-893.34,0.00020999,2]
[426302302,1782259857000,-4862.68721847,0.00021,2]
[426302301,1782259857000,-437.0,0.00021,2]
[426302307,1782259857000,-151.0,0.00021,2]
[426302300,1782259857000,-1056.65952867,0.00021,2]
[426302303,1782259857000,-1215.40161258,0.00021,2]
[426302306,1782259857000,-602.0,0.00021,2]
[426302305,1782259857000,-160.0,0.00021,7]
[426302304,1782259857000,-200.59528808,0.00021,2]
[426302308,1782259857000,-1461.0,0.00021,2]
[426302309,1782259857000,-2752.0,0.00021,2]
[426302311,1782259857000,-312.0,0.00021,2]
[426302310,1782259857000,-366.0,0.00021,2]
[426302267,1782259857000,-645.664511,0.000207,2]
[426302289,1782259857000,-1993.101868,0.000209,2]
[426302287,1782259857000,-1993.101868,0.000209,2]
[426302269,1782259857000,-645.664511,0.000207,2]
[426302285,1782259857000,-9649.26720228,0.000209,2]
[426302293,1782259857000,-2000.0,0.00020969,7]
[426302262,1782259857000,-9649.26720228,0.000207,2]
[426302263,1782259857000,-1610.8831814,0.000207,2]
[426302271,1782259857000,-269.249007,0.000207,2]
[426302270,1782259857000,-269.249007,0.000207,2]
[426302280,1782259857000,-200.0,0.00020898,2]
[426302281,1782259857000,-151.0,0.00020898,2]
[426302274,1782259857000,-500.0,0.00020788,2]
[426302275,1782259857000,-2000.0,0.00020788,2]
[426302277,1782259857000,-654.73534679,0.000208,2]
[426302272,1782259857000,-269.249007,0.000207,2]
[426302276,1782259857000,-220.96774071,0.000208,2]
[426302278,1782259857000,-426.63485121,0.000208,2]
[426302282,1782259857000,-2080.17592889,0.00020898,2]
[426302279,1782259857000,-200.0,0.00020832,2]
[426302284,1782259857000,-8764.85168775,0.000209,2]
[426302294,1782259857000,-3000.0,0.00020999,2]
[426302295,1782259857000,-3000.0,0.00020999,7]
[426302273,1782259857000,-269.249007,0.000207,2]
[426302286,1782259857000,-1610.8831814,0.000209,2]
[426302283,1782259857000,-10309.08021146,0.000209,2]
[426302350,1782259858000,-1056.65952867,0.000216,2]
[426302348,1782259858000,-2157.14243826,0.00021446,2]
[426302352,1782259858000,-12208.21,0.00021615,2]
[426302351,1782259858000,-785.0,0.00021603,2]
[426302346,1782259858000,-200.0,0.00021446,2]
[426302349,1782259858000,-10309.08021146,0.000215,2]
[426302344,1782259858000,-2570.0,0.00021387,5]
[426302345,1782259858000,-1056.65952867,0.000214,2]
[426302342,1782259858000,-1916.07,0.000213,2]
[426302354,1782259858000,-172.60219192,0.00021678,3]
[426302347,1782259858000,-151.0,0.00021446,2]
[426302360,1782259858000,-500.0,0.000217,3]
[426302357,1782259858000,-500.0,0.000217,3]
[426302355,1782259858000,-10309.08021146,0.000217,2]
[426302362,1782259858000,-500.0,0.000217,3]
[426302363,1782259858000,-500.0,0.000217,3]
[426302356,1782259858000,-500.0,0.000217,3]
[426302359,1782259858000,-500.0,0.000217,3]
[426302361,1782259858000,-500.0,0.000217,3]
[426302365,1782259858000,-500.0,0.000217,3]
[426302364,1782259858000,-500.0,0.000217,3]
[426302353,1782259858000,-306.18,0.00021644,4]
[426302378,1782259858000,-871.06772465,0.00021758,2]
[426302367,1782259858000,-165.03,0.000217,3]
[426302375,1782259858000,-218.09240396,0.00021716,2]
[426302371,1782259858000,-500.0,0.00021716,2]
[426302358,1782259858000,-500.0,0.000217,3]
[426302343,1782259858000,-5481.96,0.0002137,2]
[426302334,1782259858000,-785.0,0.00021271,2]
[426302333,1782259858000,-217.8065758,0.00021253,3]
[426302372,1782259858000,-500.0,0.00021716,2]
[426302317,1782259858000,-190.0,0.00021,2]
[426302314,1782259858000,-439.0,0.00021,2]
[426302316,1782259858000,-842.0,0.00021,2]
[426302313,1782259858000,-414.0,0.00021,2]
[426302315,1782259858000,-993.0,0.00021,2]
[426302312,1782259858000,-1378.0,0.00021,2]
[426302328,1782259858000,-642.25,0.00021227,2]
[426302323,1782259858000,-1610.8831814,0.000211,2]
[426302325,1782259858000,-1056.65952867,0.000212,2]
[426302320,1782259858000,-10309.08021146,0.000211,2]
[426302319,1782259858000,-500.0,0.00021095,2]
[426302327,1782259858000,-1112.75,0.00021227,2]
[426302324,1782259858000,-804.84,0.00021182,2]
[426302321,1782259858000,-8764.85168775,0.000211,2]
[426302329,1782259858000,-576.52,0.00021227,2]
[426302322,1782259858000,-9649.26720228,0.000211,2]
[426302326,1782259858000,-631.0,0.00021212,3]
[426302335,1782259858000,-500.0,0.00021299,2]